Workbook

Sheet SelecTool (hidden)
B2: Active Chilled Beam SelecTool v6.2.3
N5: Help Radio button selections to toggle between cooling only vs cooling and heating coil types. The background input cells are highlighted yellow. Project selections can be added to the Schedule sheet using the command button . Additional product information can be found on the website, use the link below. For more information please contact your local Climate Technologies branch.
C6: Location
C7: Name
C8: No. units in zone
B10: Model Selection
D12: Model | E12: Unit Length | F12: Nozzle Options
D13: ACB46 | E13: 1.8 | F13: 72-SN
C15: Face Dim./Unit Height | D15: ='Lookup Tables'!G82& "mm (l w h)" -> 1795 x 593 / 282mm (l w h)
C16: Model Code | D16: =IFERROR('Lookup Tables'!C84,"Make another selection.") -> ACB46-1650 / 282 72-SN
B18: Design Data
D19: Cooling | F19: Heating
C20: Room temperature | D20: 26 | F20: 21 | H20: Comfort Cooling Info.
C21: Relative Humidity | D21: 0.5 | I21: Specific primary air flow | J21: =D27/E13 -> 22.4
C22: Dew point | D22: =dewPointT(airvp(D21,airSVP(D20))) -> 14.78246498 | I22: Mean water to air ΔT | J22: =D20-AVERAGE(D31,D32) -> 8.219748764
C24: Primary air temperature | D24: 18 | F24: 21 | I24: Supply air temperature | J24: =((((airdensity(D20))*((SelecTool!D28*'2nd Cooling Calcs'!AJ21+'2nd Cooling Calcs'!AK21)*D27)/1000)*((D20+(D37/(((airdensity(D20))*((SelecTool!D28*'2nd Cooling Calcs'!AJ21+'2nd Cooling Calcs'!AK21)*D27)/1000)*1006)))+273))+((D29*airdensity(D24)/1000)*(D24+273)))/(((D29*airdensity(D24)/1000)+((airdensity(D20))*((SelecTool!D28*'2nd Cooling Calcs'!AJ21+'2nd Cooling Calcs'!AK21)*D27)/1000)))-273 -> 18.92057108
C25: Relative Humidity | D25: 0.5 | F25: 0.2 | I25: Supply volume | J25: =((SelecTool!D28*'2nd Cooling Calcs'!AJ21+'2nd Cooling Calcs'!AK21)*D27)+D27 -> 173.2288529
C27: Primary air flow rate | D27: 40.32 | F27: 40.32 | I27: PMV †† | J27: =(0.2743*D20-6.6049)-(0.007*(D21*100-50)) -> 0.5269
C28: Plenum pressure † | D28: =IFERROR(IF(RIGHT($F$13,2)="SN",acbPressureSN((D27*airdensity(D20)/1.2),$D$54),acbPressureMN((D27*airdensity(D20)/1.2),$D$54)),0) -> 113.8141861 | F28: =IFERROR(IF(RIGHT($F$13,2)="SN",acbPressureSN((F27*airdensity(F20)/1.2),$D$54),acbPressureMN((F27*airdensity(F20)/1.2),$D$54)),0) -> 117.718338 | I28: Room temp. PPD (%) | J28: =100-95*EXP(-(0.03353*J27^4+0.2179*J27^2)) -> 10.80737234
C29: ="Volume at "&LEFT(D24,2)&"°C" -> Volume at 18°C | D29: =IFERROR(IF(RIGHT($F$13,2)="SN",acbflowSN((D28),$D$54)/(airdensity(D24)/1.2),acbflowMN((D28),$D$54)/(airdensity(D24)/1.2)),0) -> 39.24120779 | I29: Room ±2°C PPD (%) | J29: =MAX(ABS(100-95*EXP(-(0.03353*((0.2743*(D20+2)-6.6049)-(0.007*(D21*100-50)))^4+0.2179*((0.2743*(D20+2)-6.6049)-(0.007*(D21*100-50)))^2))),ABS(100-95*EXP(-(0.03353*((0.2743*(D20-2)-6.6049)-(0.007*(D21*100-50)))^4+0.2179*((0.2743*(D20-2)-6.6049)-(0.007*(D21*100-50)))^2)))) -> 29.4042277
E30: Mean water | N30: For more product information please click here
C31: Supply water temperature | D31: 16 | F31: =IF(D53=1,"",F20+((F30-F20)+(F37/(4187*F34))/2)) ->  | H31: † Relative to room air temperature at sea level.
C32: Return water temperature | D32: =IFERROR(D31-(D37/(D34*4187)),D31) -> 19.56050247 | F32: =IF(D53=1,"",F20+((F30-F20)-(F37/(4187*F34))/2)) ->  | H32: †† Assumes CLO 0.75, activity 1.2met and air velocity 0.25m/s.
C33: Water pressure drop | D33: =IFERROR('Lookup Tables'!Q82*SelecTool!D34^'Lookup Tables'!R82,0) -> 14.17617931 | F33: =IFERROR('Lookup Tables'!S82*SelecTool!F34^'Lookup Tables'!T82,0) -> 0 | H33: PPD Limits: | I33: ISO7730:2005 <15% PPD
C34: Water flow | D34: 0.072 | F34: =IF(D53=1,0,0.05) -> 0 | I34: ASHRAE 55 Standard <20% PPD
C36: Primary Air Sensible Duty | D36: =IFERROR((airdensity(D20)*D27/1000)*(((1006*(D24-D20)))+(1.84*(D24-D20)*airVPtoHumidityRatio(airvp(D25,airSVP(D24))))),0) -> -387.5517954 | F36: =IFERROR((airdensity(F20)*F27/1000)*(((1006*(F24-F20)))+(1.84*(F24-F20)*airVPtoHumidityRatio(airvp(F25,airSVP(F24))))),0) -> 0
C37: Waterside Sensible Duty | D37: =IFERROR(('2nd Cooling Calcs'!R38*'Lookup Tables'!C86/1000),0) -> -1073.363317 | F37: =IFERROR(('2nd Heating Calcs'!I38*'Lookup Tables'!C86/1000),0) -> 0
C38: Total Sensible Duty | D38: =D37+D36 -> -1460.915112 | F38: =F37+F36 -> 0
C39: Primary Air Latent Duty | D39: =(airVPtoHumidityRatio(airvp(D25,airSVP(D24)))-airVPtoHumidityRatio(airvp(D21,airSVP(D20))))*airdensity(D24)*(D29/1000)*2501 -> -486.672643
F43: For more product information please click here | N43: Expires in 273 days.
B51: Standardised Specific Inputs
C53: Radio Button Ouput | D53: 1
C54: No. Nozzles | D54: =IFERROR((IF(ISNUMBER(ABS(LEFT(F13,3)))=TRUE,ABS(LEFT(F13,3)),ABS(LEFT(F13,2)))),0) -> 72
C55: nozzles per m | D55: =D54/(LEFT('Lookup Tables'!P82,4)/1000) -> 43.63636364
C56: primary flow per m (@21C) | D56: =IFERROR(IF(RIGHT($F$13,2)="SN",acbflowSN(D28,$D$54),acbflowMN(D28,$D$54)),0)/LEFT('Lookup Tables'!P82,4)*1000 -> 24.03981527 | F56: =IFERROR(IF(RIGHT($F$13,2)="SN",acbflowSN(F28,$D$54),acbflowMN(F28,$D$54)),0)/LEFT('Lookup Tables'!P82,4)*1000 -> 24.44865602
C57: Unit water flow rate | D57: =D34*1000/'Lookup Tables'!C86 -> 0.04363636364
C58: Min Primary Flow | D58: =IFERROR(IF(RIGHT(F13,2)="SN",acbflowSN(30,D54),acbflowMN(30,D54)),0) -> 20.36467552
C59: Max Primary Flow | D59: =IFERROR(IF(RIGHT(F13,2)="SN",acbflowSN(200,D54),acbflowMN(200,D54)),0) -> 52.58136368
C60: Min Unit Length | D60: =IF(D53=1,'ValData_model length'!E6,'ValData_model length'!E46) -> 0.6

Sheet 2nd Cooling Calcs (hidden)
D1: SECONDARY COOLING FUNCTIONS DERIVED FROM TEST DATA | AH1: COIL WATER RESISTANCE
AH2: Functions | AI2: kPa = ax^b where x = L/s, and L/s = (y/a)^(1/b) where y = kPa
A3: Input Match Require one row for each Model,Coil Type and Nozzle Type. | E3: Reference Model Tested | F3: Coil Length | G3: Total No. Nozzles | H3: Mean Water Flow | I3: Coefficient @ 0.1L/s | J3: Exponent @ 0.1L/s | K3: Exponent @ 0.1L/s | L3: Mean Water Flow | M3: Coefficient @ 0.05L/s | N3: Exponent @ 0.05L/s | O3: Exponent @ 0.05L/s | P3: Total No. Nozzles | Q3: Mean Water Flow | R3: Coefficient @ 0.1L/s | S3: Exponent @ 0.1L/s | T3: Exponent @ 0.1L/s | U3: Mean Water Flow | V3: Coefficient @ 0.05L/s | W3: Exponent @ 0.05L/s | X3: Exponent @ 0.05L/s | Y3: Total No. Nozzles | Z3: Mean Water Flow | AA3: Coefficient @ 0.1L/s | AB3: Exponent @ 0.1L/s | AC3: Exponent @ 0.1L/s | AD3: Mean Water Flow | AE3: Coefficient @ 0.05L/s | AF3: Exponent @ 0.05L/s | AG3: Exponent @ 0.05L/s | AH3: Water Resistance Function | AJ3: Approx IR | AP3: TEST PROJECT REFERENCE
A4: Model | B4: Coil | C4: Nozzle Type | D4: Block Code Ref. | F4: m | H4: kg/s | I4: A | J4: n | K4: m | L4: kg/s | M4: A | N4: n | O4: m | Q4: kg/s | R4: A | S4: n | T4: m | U4: kg/s | V4: A | W4: n | X4: m | Z4: kg/s | AA4: A | AB4: n | AC4: m | AD4: kg/s | AE4: A | AF4: n | AG4: m | AH4: Factor (a) | AI4: Power (b) | AJ4: m | AK4: c | AL4: IR = kPa.m+C | AP4: To generate cooling function constants.
A6: ACB45 | B6: 282 | C6: SN | D6: =A6&"-"&B6&"-"&C6 -> ACB45-282-SN | E6: ACB45-1350/282 SE | F6: 1.35 | G6: 30 | H6: 0.08932435532 | I6: 1.304637175 | J6: 1.339854218 | K6: 0.9924827974 | L6: 0.03914417446 | M6: 1.016053453 | N6: 1.32551243 | O6: 1.098214749 | P6: 50 | Q6: 0.08925503954 | R6: 1.728819222 | S6: 1.218489611 | T6: 0.9494239394 | U6: 0.03894923337 | V6: 2.39399083 | W6: 1.100684641 | X6: 0.9380727845 | Y6: 70 | Z6: 0.09011656821 | AA6: 1.918875791 | AB6: 1.129416295 | AC6: 0.9770991154 | AD6: 0.03943786377 | AE6: 2.98779915 | AF6: 0.9604242369 | AG6: 1.010522375 | AH6: 1317.26 | AI6: 1.75 | AJ6: 0.007285457352 | AK6: 1.978077844 | AP6: 2015_8
A7: ACB46 | B7: 282 | C7: SN | D7: ACB46-282-SN | E7: ACB46-1050/282 SE | F7: 1.05 | G7: 40 | H7: 0.118076975 | I7: 2.324503574 | J7: 1.190107639 | K7: 0.9302145064 | L7: 0.05724817055 | M7: 2.466503052 | N7: 1.128130483 | O7: 0.9761552298 | P7: 50 | Q7: 0.116116719 | R7: 2.85230121 | S7: 1.071899245 | T7: 0.939227677 | U7: 0.05487892563 | V7: 2.747111105 | W7: 1.064642492 | X7: 0.9476890908 | Y7: 60 | Z7: 0.1158775054 | AA7: 2.979337274 | AB7: 1.053992853 | AC7: 0.9096708632 | AD7: 0.05867592084 | AE7: 0.7300456724 | AF7: 1.388593319 | AG7: 1.025862786 | AH7: 1215.65 | AI7: 1.79 | AJ7: 0.0112607932 | AK7: 2.014712506 | AP7: 2015_15
A8: ACB46H | B8: 282 | C8: SN | D8: ACB46H-282-SN | E8: ACB46H-1050/282 SE | F8: 1.05 | G8: 40 | H8: 0.118076975 | I8: 2.324503574 | J8: 1.190107639 | K8: 0.9302145064 | L8: 0.05724817055 | M8: 2.466503052 | N8: 1.128130483 | O8: 0.9761552298 | P8: 50 | Q8: 0.116116719 | R8: 2.85230121 | S8: 1.071899245 | T8: 0.939227677 | U8: 0.05487892563 | V8: 2.747111105 | W8: 1.064642492 | X8: 0.9476890908 | Y8: 60 | Z8: 0.1158775054 | AA8: 2.979337274 | AB8: 1.053992853 | AC8: 0.9096708632 | AD8: 0.05867592084 | AE8: 0.7300456724 | AF8: 1.388593319 | AG8: 1.025862786 | AH8: =AH7 -> 1215.65 | AI8: 1.79 | AJ8: 0.0112607932 | AK8: 2.014712506 | AP8: 2015_15
A9: CM10 6TH | B9: 262 | C9: SN | D9: CM10 6TH-262-SN | E9: CM10-1100/262 SE | F9: 1.1 | G9: 20 | H9: 0.1183911281 | I9: 2.517178503 | J9: 1.332105831 | K9: 0.9066890729 | L9: 0.05547832634 | M9: 2.894886433 | N9: 1.270979346 | O9: 0.9012723764 | P9: 26 | Q9: 0.1182351026 | R9: 3.120392253 | S9: 1.249112089 | T9: 0.8485287885 | U9: 0.05637438331 | V9: 2.771433162 | W9: 1.220381386 | X9: 0.9435655933 | Y9: 33 | Z9: 0.1179697407 | AA9: 3.967248102 | AB9: 1.12900347 | AC9: 0.8342784279 | AD9: 0.04559199447 | AE9: 4.571006518 | AF9: 0.9352927039 | AG9: 1.014655066 | AH9: 785.87 | AI9: 1.73 | AJ9: 0.009717897853 | AK9: 2.854529078 | AP9: 2015_09
A10: CM10 6TH | B10: 262 | C10: MN | D10: CM10 6TH-262-MN | E10: CM10-1100/262 SE | F10: 1.1 | G10: 20 | H10: 0.1193275156 | I10: 2.348947083 | J10: 1.198463212 | K10: 0.8737676049 | L10: 0.05264274968 | M10: 1.9582049 | N10: 1.201225838 | O10: 0.9457552301 | P10: 30 | Q10: 0.1198505985 | R10: 2.550723788 | S10: 1.106491382 | T10: 0.9475310941 | U10: 0.05287003578 | V10: 2.507116172 | W10: 1.098603914 | X10: 0.9678167443 | Y10: 40 | Z10: 0.1183384897 | AA10: 2.381142384 | AB10: 1.052115735 | AC10: 0.9765108827 | AD10: 0.05321069948 | AE10: 2.881513511 | AF10: 0.9628923163 | AG10: 1.010830967 | AH10: 785.87 | AI10: 1.73 | AJ10: 0.003489053994 | AK10: 2.335053364 | AP10: 2015_14
A11: ACB46 | B11: 482 | C11: SN | D11: ACB46-482-SN | E11: ACB-1050/482 SE | F11: 1.05 | G11: 40 | H11: 0.118076975 | I11: 2.324503574 | J11: 1.190107639 | K11: 0.9302145064 | L11: 0.05724817055 | M11: 2.466503052 | N11: 1.128130483 | O11: 0.9761552298 | P11: 50 | Q11: 0.116116719 | R11: 2.85230121 | S11: 1.071899245 | T11: 0.939227677 | U11: 0.05487892563 | V11: 2.747111105 | W11: 1.064642492 | X11: 0.9476890908 | Y11: 60 | Z11: 0.1158775054 | AA11: 2.979337274 | AB11: 1.053992853 | AC11: 0.9096708632 | AD11: 0.05867592084 | AE11: 0.7300456724 | AF11: 1.388593319 | AG11: 1.025862786 | AH11: 844.5243809 | AI11: 1.753163743 | AJ11: 0.0112607932 | AK11: 2.014712506 | AP11: 2015_15
A12: ACB46H | B12: 482 | C12: SN | D12: ACB46H-482-SN | E12: ACB46H-1050/482 SE | F12: 1.05 | G12: 40 | H12: 0.118076975 | I12: 2.324503574 | J12: 1.190107639 | K12: 0.9302145064 | L12: 0.05724817055 | M12: 2.466503052 | N12: 1.128130483 | O12: 0.9761552298 | P12: 50 | Q12: 0.116116719 | R12: 2.85230121 | S12: 1.071899245 | T12: 0.939227677 | U12: 0.05487892563 | V12: 2.747111105 | W12: 1.064642492 | X12: 0.9476890908 | Y12: 60 | Z12: 0.1158775054 | AA12: 2.979337274 | AB12: 1.053992853 | AC12: 0.9096708632 | AD12: 0.05867592084 | AE12: 0.7300456724 | AF12: 1.388593319 | AG12: 1.025862786 | AH12: =AH11 -> 844.5243809 | AI12: 1.753163743 | AJ12: 0.0112607932 | AK12: 2.014712506 | AP12: 2015_15
A13: ACB45 | B13: 482 | C13: SN | D13: ACB45-482-SN | E13: ACB45-1050/482 SE | F13: 1.35 | G13: 30 | H13: 0.08932435532 | I13: 1.304637175 | J13: 1.339854218 | K13: 0.9924827974 | L13: 0.03914417446 | M13: 1.016053453 | N13: 1.32551243 | O13: 1.098214749 | P13: 50 | Q13: 0.08925503954 | R13: 1.728819222 | S13: 1.218489611 | T13: 0.9494239394 | U13: 0.03894923337 | V13: 2.39399083 | W13: 1.100684641 | X13: 0.9380727845 | Y13: 70 | Z13: 0.09011656821 | AA13: 1.918875791 | AB13: 1.129416295 | AC13: 0.9770991154 | AD13: 0.03943786377 | AE13: 2.98779915 | AF13: 0.9604242369 | AG13: 1.010522375 | AH13: 1126.7 | AI13: 1.82 | AJ13: 0.007285457352 | AK13: 1.978077844 | AP13: 2015_8
A14: ACB50 | B14: 282 | C14: SN | D14: ACB50-282-SN | E14: ACB50-1050/282 SE | F14: 1.05 | G14: 20 | H14: 0.1183237917 | I14: 3.749850661 | J14: 1.218435358 | K14: 0.8291322888 | L14: 0.05313612895 | M14: 4.370803132 | N14: 1.115499965 | O14: 0.8695436989 | P14: 25 | Q14: 0.1189344527 | R14: 2.59775191 | S14: 1.212465612 | T14: 0.9412963383 | U14: 0.05325743671 | V14: 2.994703966 | W14: 1.124381944 | X14: 0.9781077206 | Y14: 30 | Z14: 0.1170659612 | AA14: 2.87488322 | AB14: 1.125083126 | AC14: 0.9794479894 | AD14: 0.05338605104 | AE14: 1.575058299 | AF14: 1.115153207 | AG14: 1.254957799 | AH14: 1215.65 | AI14: 1.79 | AJ14: 0.01051072183 | AK14: 2.448586391 | AP14: 2016_06
A15: HM30 | B15: 482 | C15: MN | D15: HM30-482-MN | E15: HM30-1500/482 SE | F15: 1.5 | G15: 20 | H15: 0.1 | I15: 0.8870816952 | J15: 1.620436541 | K15: 0.8937020503 | L15: 0.047999 | M15: 1.286833213 | N15: 1.440825439 | O15: 0.9139033118 | P15: 33 | Q15: 0.1006556 | R15: 1.790076291 | S15: 1.311986849 | T15: 0.9038486592 | U15: 0.048239 | V15: 2.517894641 | W15: 1.166969523 | X15: 0.964486736 | Y15: 46 | Z15: 0.1013542116 | AA15: 2.658516044 | AB15: 1.132779149 | AC15: 0.9351774948 | AD15: 0.0551154 | AE15: 3.213361223 | AF15: 1.040750911 | AG15: 0.9895878331 | AH15: 1235 | AI15: 1.81 | AJ15: 0.0089 | AK15: 2.71 | AP15: 2016_12
A16: None | D16: =A16&"-"&B16&"-"&C16 -> None--
D17: --
D18: --
D19: =A19&"-"&B19&"-"&C19 -> --
D20: =A20&"-"&B20&"-"&C20 -> --
D21: =VLOOKUP('Lookup Tables'!$C$85,$D$5:$AK$20,D22,0) -> ACB46-282-SN | E21: =VLOOKUP('Lookup Tables'!$C$85,$D$5:$AK$20,E22,0) -> ACB46-1050/282 SE | F21: =VLOOKUP('Lookup Tables'!$C$85,$D$5:$AK$20,F22,0) -> 1.05 | G21: =VLOOKUP('Lookup Tables'!$C$85,$D$5:$AK$20,G22,0) -> 40 | H21: =VLOOKUP('Lookup Tables'!$C$85,$D$5:$AK$20,H22,0) -> 0.118076975 | I21: =VLOOKUP('Lookup Tables'!$C$85,$D$5:$AK$20,I22,0) -> 2.324503574 | J21: =VLOOKUP('Lookup Tables'!$C$85,$D$5:$AK$20,J22,0) -> 1.190107639 | K21: =VLOOKUP('Lookup Tables'!$C$85,$D$5:$AK$20,K22,0) -> 0.9302145064 | L21: =VLOOKUP('Lookup Tables'!$C$85,$D$5:$AK$20,L22,0) -> 0.05724817055 | M21: =VLOOKUP('Lookup Tables'!$C$85,$D$5:$AK$20,M22,0) -> 2.466503052 | N21: =VLOOKUP('Lookup Tables'!$C$85,$D$5:$AK$20,N22,0) -> 1.128130483 | O21: =VLOOKUP('Lookup Tables'!$C$85,$D$5:$AK$20,O22,0) -> 0.9761552298 | P21: =VLOOKUP('Lookup Tables'!$C$85,$D$5:$AK$20,P22,0) -> 50 | Q21: =VLOOKUP('Lookup Tables'!$C$85,$D$5:$AK$20,Q22,0) -> 0.116116719 | R21: =VLOOKUP('Lookup Tables'!$C$85,$D$5:$AK$20,R22,0) -> 2.85230121 | S21: =VLOOKUP('Lookup Tables'!$C$85,$D$5:$AK$20,S22,0) -> 1.071899245 | T21: =VLOOKUP('Lookup Tables'!$C$85,$D$5:$AK$20,T22,0) -> 0.939227677 | U21: =VLOOKUP('Lookup Tables'!$C$85,$D$5:$AK$20,U22,0) -> 0.05487892563 | V21: =VLOOKUP('Lookup Tables'!$C$85,$D$5:$AK$20,V22,0) -> 2.747111105 | W21: =VLOOKUP('Lookup Tables'!$C$85,$D$5:$AK$20,W22,0) -> 1.064642492 | X21: =VLOOKUP('Lookup Tables'!$C$85,$D$5:$AK$20,X22,0) -> 0.9476890908 | Y21: =VLOOKUP('Lookup Tables'!$C$85,$D$5:$AK$20,Y22,0) -> 60 | Z21: =VLOOKUP('Lookup Tables'!$C$85,$D$5:$AK$20,Z22,0) -> 0.1158775054 | AA21: =VLOOKUP('Lookup Tables'!$C$85,$D$5:$AK$20,AA22,0) -> 2.979337274 | AB21: =VLOOKUP('Lookup Tables'!$C$85,$D$5:$AK$20,AB22,0) -> 1.053992853 | AC21: =VLOOKUP('Lookup Tables'!$C$85,$D$5:$AK$20,AC22,0) -> 0.9096708632 | AD21: =VLOOKUP('Lookup Tables'!$C$85,$D$5:$AK$20,AD22,0) -> 0.05867592084 | AE21: =VLOOKUP('Lookup Tables'!$C$85,$D$5:$AK$20,AE22,0) -> 0.7300456724 | AF21: =VLOOKUP('Lookup Tables'!$C$85,$D$5:$AK$20,AF22,0) -> 1.388593319 | AG21: =VLOOKUP('Lookup Tables'!$C$85,$D$5:$AK$20,AG22,0) -> 1.025862786 | AH21: =VLOOKUP('Lookup Tables'!$C$85,$D$5:$AK$20,AH22,0) -> 1215.65 | AI21: =VLOOKUP('Lookup Tables'!$C$85,$D$5:$AK$20,AI22,0) -> 1.79 | AJ21: =VLOOKUP('Lookup Tables'!$C$85,$D$5:$AK$20,AJ22,0) -> 0.0112607932 | AK21: =VLOOKUP('Lookup Tables'!$C$85,$D$5:$AK$20,AK22,0) -> 2.014712506
C22: Column Ref: | D22: 1 | E22: 2 | F22: 3 | G22: 4 | H22: 5 | I22: 6 | J22: 7 | K22: 8 | L22: 9 | M22: 10 | N22: 11 | O22: 12 | P22: 13 | Q22: 14 | R22: 15 | S22: 16 | T22: 17 | U22: 18 | V22: 19 | W22: 20 | X22: 21 | Y22: 22 | Z22: 23 | AA22: 24 | AB22: 25 | AC22: 26 | AD22: 27 | AE22: 28 | AF22: 29 | AG22: 30 | AH22: 31 | AI22: 32 | AJ22: 33 | AK22: 34
A26: Selection Calculations
A28: Sample Number of Nozzles | E28: Ref. Nozzle Numbers | R28: Actual Interpolated Secondary Cooling
B29: qp | C29: Өw1 | D29: Ps | E29: SN or MN | F29: Pk | G29: Өw2 | H29: Iterated High Flow Reference Pw | L29: Pk | M29: Өw2 | N29: Iterated Low Flow Reference Pw | R29: W
A30: =SelecTool!D55*'2nd Cooling Calcs'!F21 -> 45.81818182 | B30: =SelecTool!D56*'2nd Cooling Calcs'!F21 -> 25.24180603 | C30: =SelecTool!D31 -> 16 | D30: N/A | E30: =G21 -> 40 | F30: =waterPk(I21,J21,B30) -> 108.3937988 | G30: =waterTempW2(F30,K21,C30,H21,C34) -> 17.71756363 | H30: =(G30-C30)*H21*4187 -> 849.1433527 | L30: =waterPk(M21,N21,B30) -> 94.15782928 | M30: =waterTempW2(L30,O21,C30,L21,C34) -> 19.14714813 | N30: =(M30-C30)*L21*4187 -> 754.3653965
E31: =P21 -> 50 | F31: =waterPk(R21,S21,B30) -> 90.80864716 | G31: =waterTempW2(F31,T21,C30,Q21,C34) -> 17.50866318 | H31: =(G31-C30)*Q21*4187 -> 733.4829233 | I31: c.base (m) | J31: constant(b) | K31: Nozzle specific Pw | L31: =waterPk(V21,W21,B30) -> 85.43448639 | M31: =waterTempW2(L31,X21,C30,U21,C34) -> 18.85011673 | N31: =(M31-C30)*U21*4187 -> 654.8942976 | O31: c.base (m) | P31: constant(b) | Q31: Nozzle SpecificPw
E32: =Y21 -> 60 | F32: =waterPk(AA21,AB21,B30) -> 89.5250473 | G32: =waterTempW2(F32,AC21,C30,Z21,C34) -> 17.40282059 | H32: =(G32-C30)*Z21*4187 -> 680.6192511 | I32: =LINEST(H30:H32,LN(E30:E32),TRUE,FALSE) -> -419.4120775 | J32: 2389.457792 | K32: =I32*LN($A$30)+J32 -> 785.3403905 | L32: =waterPk(AE21,AF21,B30) -> 64.61376953 | M32: =waterTempW2(L32,AG21,C30,AD21,C34) -> 18.4429493 | N32: =(M32-C30)*AD21*4187 -> 600.1742078 | O32: =LINEST(N30:N32,LN(E30:E32),TRUE,FALSE) -> -382.6932072 | P32: 2161.708498 | Q32: =O32*LN($A$30)+P32 -> 698.0290613
A33: Water Pressure Drop | C33: =AH21*C35^AI21 -> 4.876029318 | D33: kPa | Q33: Interpolated from the high and and low water flow reference duties | R33: =IF(Q32>K32,AVERAGE(K32,Q32),((C35-B37)*(K32-Q32)/(B36-B37))+Q32) -> 696.9891668
A34: Room Temp | C34: =SelecTool!D20 -> 26 | Q34: Өw2 | R34: =C30+(R33/(C35*4187)) -> 19.63316579
A35: Coil specific flow rate | C35: =SelecTool!D57*F21 -> 0.04581818182 | D35: L/s | Q35: ΔӨ | R35: =C34-AVERAGE(R34,C30) -> 8.183417107
A36: Flow at 20kPa | B36: =(20/AH21)^(1/AI21) -> 0.1008035125 | C36: L/s
A37: Flow at 5kPa | B37: =(5/AH21)^(1/AI21) -> 0.0464653595 | C37: L/s | Q37: Eurovent safety factor (1=no factor) | R37: 0.98
Q38: Specific Cooling Rate | R38: =R37*(-1*R33/F21) -> -650.5232224 | S38: W/m coil

Sheet 2nd Heating Calcs (hidden)
D1: SECONDARY COOLING FUNCTIONS DERIVED FROM TEST DATA | V1: COIL WATER RESISTANCE
V2: Functions | W2: kPa = ax^b where x = L/s, and L/s = (y/a)^(1/b) where y = kPa
A3: Input Match Require one row for each Model,Coil Type and Nozzle Type. | E3: Reference Model Tested | F3: Coil Length | G3: Total No. Nozzles | H3: Mean Water Flow | I3: Coefficient @ 0.05L/s | J3: Exponent @ 0.05L/s | K3: Exponent @ 0.05L/s | L3: Total No. Nozzles | M3: Mean Water Flow | N3: Coefficient @ 0.05L/s | O3: Exponent @ 0.05L/s | P3: Exponent @ 0.05L/s | Q3: Total No. Nozzles | R3: Mean Water Flow | S3: Coefficient @ 0.05L/s | T3: Exponent @ 0.05L/s | U3: Exponent @ 0.05L/s | V3: Water Resistance Function | X3: Approx IR | AE3: TEST PROJECT REFERENCE
A4: Model | B4: Coil | C4: Nozzle Type | D4: Block Code Ref. | F4: m | H4: kg/s | I4: A | J4: n | K4: m | L4: SN | M4: kg/s | N4: A | O4: n | P4: m | Q4: SN | R4: kg/s | S4: A | T4: n | U4: m | V4: Factor (a) | W4: Power (b) | X4: m | Y4: c | Z4: IR = kPa.m+C | AE4: To generate cooling function constants.
A6: ACB45 | B6: 482 | C6: SN | D6: =A6&"-"&B6&"-"&C6 -> ACB45-482-SN | E6: ACB45-1050/482 SE | F6: 1.05 | G6: 40 | H6: 0.05340366264 | I6: 3.853556321 | J6: 0.8064242197 | K6: 1.007222748 | L6: 50 | M6: 0.05107293458 | N6: 4.969294198 | O6: 0.7152287856 | P6: 0.9906537465 | Q6: 60 | R6: 0.05246105302 | S6: 4.07658143 | T6: 0.6642226522 | U6: 1.093362814 | V6: 341 | W6: 1.79 | X6: 0.0112607932 | Y6: 2.014712506 | AE6: 2015_15
A7: ACB46 | B7: 482 | C7: SN | D7: ACB46-482-SN | E7: ACB46-1050/482 SE | F7: 1.05 | G7: 40 | H7: 0.05340366264 | I7: 3.853556321 | J7: 0.8064242197 | K7: 1.007222748 | L7: 50 | M7: 0.05107293458 | N7: 4.969294198 | O7: 0.7152287856 | P7: 0.9906537465 | Q7: 60 | R7: 0.05246105302 | S7: 4.07658143 | T7: 0.6642226522 | U7: 1.093362814 | V7: 341 | W7: 1.79 | X7: 0.0112607932 | Y7: 2.014712506 | AE7: 2015_15
A8: ACB46H | B8: 482 | C8: SN | D8: ACB46H-482-SN | E8: ACB46-1050/482 SE | F8: 1.05 | G8: 40 | H8: 0.05340366264 | I8: 3.853556321 | J8: 0.8064242197 | K8: 1.007222748 | L8: 50 | M8: 0.05107293458 | N8: 4.969294198 | O8: 0.7152287856 | P8: 0.9906537465 | Q8: 60 | R8: 0.05246105302 | S8: 4.07658143 | T8: 0.6642226522 | U8: 1.093362814 | V8: 341 | W8: 1.79 | X8: 0.0112607932 | Y8: 2.014712506 | AE8: 2015_15
A9: HM30 | B9: 482 | C9: MN | D9: HM30-482-MN | E9: HM30-1500/482 SE | F9: 1.5 | G9: 20 | H9: 0.0510956 | I9: 1.096528408 | J9: 1.222570427 | K9: 1.080218311 | L9: 33 | M9: 0.0522 | N9: 2.245968891 | O9: 1.011716293 | P9: 1.027019576 | Q9: 46 | R9: 0.0522 | S9: 5.056854851 | T9: 0.7906182706 | U9: 0.969794843 | V9: 484.1 | W9: 1.85 | X9: 0.0089 | Y9: 2.71 | AE9: 2016_12
D10: =A10&"-"&B10&"-"&C10 -> --
D11: --
A12: None | D12: None--
D13: --
D14: --
D15: --
D16: --
D17: --
D18: --
D19: =A19&"-"&B19&"-"&C19 -> --
D20: =A20&"-"&B20&"-"&C20 -> --
D21: =VLOOKUP('Lookup Tables'!$C$85,$D$5:$Y$20,D22,0) ->  | E21: =VLOOKUP('Lookup Tables'!$C$85,$D$5:$Y$20,E22,0) ->  | F21: =VLOOKUP('Lookup Tables'!$C$85,$D$5:$Y$20,F22,0) ->  | G21: =VLOOKUP('Lookup Tables'!$C$85,$D$5:$Y$20,G22,0) ->  | H21: =VLOOKUP('Lookup Tables'!$C$85,$D$5:$Y$20,H22,0) ->  | I21: =VLOOKUP('Lookup Tables'!$C$85,$D$5:$Y$20,I22,0) ->  | J21: =VLOOKUP('Lookup Tables'!$C$85,$D$5:$Y$20,J22,0) ->  | K21: =VLOOKUP('Lookup Tables'!$C$85,$D$5:$Y$20,K22,0) ->  | L21: =VLOOKUP('Lookup Tables'!$C$85,$D$5:$Y$20,L22,0) ->  | M21: =VLOOKUP('Lookup Tables'!$C$85,$D$5:$Y$20,M22,0) ->  | N21: =VLOOKUP('Lookup Tables'!$C$85,$D$5:$Y$20,N22,0) ->  | O21: =VLOOKUP('Lookup Tables'!$C$85,$D$5:$Y$20,O22,0) ->  | P21: =VLOOKUP('Lookup Tables'!$C$85,$D$5:$Y$20,P22,0) ->  | Q21: =VLOOKUP('Lookup Tables'!$C$85,$D$5:$Y$20,Q22,0) ->  | R21: =VLOOKUP('Lookup Tables'!$C$85,$D$5:$Y$20,R22,0) ->  | S21: =VLOOKUP('Lookup Tables'!$C$85,$D$5:$Y$20,S22,0) ->  | T21: =VLOOKUP('Lookup Tables'!$C$85,$D$5:$Y$20,T22,0) ->  | U21: =VLOOKUP('Lookup Tables'!$C$85,$D$5:$Y$20,U22,0) ->  | V21: =VLOOKUP('Lookup Tables'!$C$85,$D$5:$Y$20,V22,0) ->  | W21: =VLOOKUP('Lookup Tables'!$C$85,$D$5:$Y$20,W22,0) ->  | X21: =VLOOKUP('Lookup Tables'!$C$85,$D$5:$Y$20,X22,0) ->  | Y21: =VLOOKUP('Lookup Tables'!$C$85,$D$5:$Y$20,Y22,0) -> 
C22: Column Ref: | D22: 1 | E22: 2 | F22: 3 | G22: 4 | H22: 5 | I22: 6 | J22: 7 | K22: 8 | L22: 9 | M22: 10 | N22: 11 | O22: 12 | P22: 13 | Q22: 14 | R22: 15 | S22: 16 | T22: 17 | U22: 18 | V22: 19 | W22: 20 | X22: 21 | Y22: 22
A26: Selection Calculations
A28: Sample Number of Nozzles | E28: Ref. Nozzle Numbers | I28: Actual Interpolated Secondary Cooling
B29: qp | C29: ΔӨ | D29: Ps | E29: SN | F29: Iterated Low Flow Reference Pw | I29: W
A30: =SelecTool!D55*'2nd Heating Calcs'!F21 ->  | B30: =SelecTool!F56*'2nd Heating Calcs'!F21 ->  | C30: =SelecTool!F30-SelecTool!F20 -> -21 | D30: N/A | E30: =G21 ->  | F30: =(I$21*$B$30^J$21)*$C$30^K$21 -> 
E31: =L21 ->  | F31: =(N$21*$B$30^O$21)*$C$30^P$21 ->  | G31: c.base (m) | H31: constant(b) | I31: Nozzle SpecificPw
E32: =Q21 ->  | F32: =(S$21*$B$30^T$21)*$C$30^U$21 ->  | G32: =LINEST(F30:F32,LN(E30:E32),TRUE,FALSE) ->  | I32: =G32*LN($A$30)+H32 -> 
A33: Water Pressure Drop | C33: =V21*C35^W21 ->  | D33: kPa
A34: Room Temp | C34: =SelecTool!F20 -> 21
A35: Actual Water Flow | C35: =SelecTool!F34 -> 0 | D35: L/s
A36: Flow at 20kPa | B36: =(20/V21)^(1/W21) ->  | C36: L/s
A37: Flow at 5kPa | B37: =(5/V21)^(1/W21) ->  | C37: L/s | H37: Safety factor (1=no factor) | I37: 0.95
H38: Specific Cooling Rate | I38: =I37*(1*I32/F21) ->  | J38: W/m coil

Sheet Lookup Tables (hidden)
C1: Model Configurations
Q2: kPa = ax^b where x = L/s, and L/s = (y/a)^(1/b) where y = kPa
Q3: Coolinig Coil Water Resistance Function | S3: Heating Coil Water Resistance Function
C4: CODE | D4: RADIO BUTTON | F4: Nom Length | G4: Face Dim / Height | H4: No. Nozzles-Type | N4: Min Noz | O4: Max Noz/m | P4: Coil | Q4: Factor (a) | R4: Power (b) | S4: Factor (a) | T4: Power (b)
C5: =D5&"-"&E5&"-"&F5 -> 1-ACB45-0.9 | D5: 1 | E5: ACB45 | F5: 0.9 | G5: 895 x 493 / 283 | H5: 32-SN | I5: 34-SN | J5: 38-SN | K5: 40-SN | L5: 48-SN | N5: =EVEN(ROUND(16*(F5-0.15)*2,0)) -> 24 | O5: =EVEN(ROUND(36*(F5-0.15)*2,0)) -> 54 | P5: 750 / 282 | Q5: 1138.5 | R5: 1.86
C6: 1-ACB45-1.5 | D6: 1 | E6: ACB45 | F6: 1.5 | G6: 1495 x 493 / 283 | H6: 52-SN | I6: 54-SN | J6: 58-SN | K6: 62-SN | L6: 68-SN | M6: 76-SN | N6: =EVEN(ROUND(16*(F6-0.15)*2,0)) -> 44 | O6: =EVEN(ROUND(36*(F6-0.15)*2,0)) -> 98 | P6: 1350 / 282 | Q6: 1317.3 | R6: 1.75
C7: 2-ACB45-0.9 | D7: 2 | E7: ACB45 | F7: 0.9 | G7: 895 x 493 / 283 | H7: 32-SN | I7: 34-SN | J7: 38-SN | K7: 40-SN | L7: 48-SN | N7: =EVEN(ROUND(16*(F7-0.15)*2,0)) -> 24 | O7: 54 | P7: 750 / 482 | Q7: 599.2 | R7: 1.67 | S7: 270.7 | T7: 1.73
C8: 2-ACB45-1.5 | D8: 2 | E8: ACB45 | F8: 1.5 | G8: 1495 x 493 / 283 | H8: 58-SN | I8: 62-SN | J8: 68-SN | K8: 76-SN | L8: 90-SN | N8: 44 | O8: 98 | P8: 1350 / 482 | Q8: 1126.7 | R8: 1.82 | S8: 419.3 | T8: 1.84
C9: 1-ACB46-0.6 | D9: 1 | E9: ACB46 | F9: 0.6 | G9: 595 x 593 / 282 | H9: 32-SN | N9: 14 | O9: 32 | P9: 450 / 282 | Q9: 980.11 | R9: 1.97
C10: 1-ACB46-0.9 | D10: 1 | E10: ACB46 | F10: 0.9 | G10: 895 x 593 / 282 | H10: 32-SN | I10: 34-SN | J10: 38-SN | K10: 40-SN | L10: 46-SN | M10: 48-SN | N10: 24 | O10: 54 | P10: 750 / 282 | Q10: 1138.5 | R10: 1.86
C11: 1-ACB46-1.2 | D11: 1 | E11: ACB46 | F11: 1.2 | G11: 1195 x 593 / 282 | H11: 42-SN | I11: 50-SN | J11: 54-SN | K11: 62-SN | L11: 68-SN | N11: 34 | O11: =EVEN(ROUND(36*(F11-0.15)*2,0)) -> 76 | P11: 1050 / 282 | Q11: 1215.65 | R11: 1.79
C12: 1-ACB46-1.5 | D12: 1 | E12: ACB46 | F12: 1.5 | G12: 1495 x 593 / 282 | H12: 58-SN | I12: 76-SN | J12: 92-SN | N12: 44 | O12: 98 | P12: 1350 / 282 | Q12: 1317.3 | R12: 1.75
C13: 1-ACB46-1.8 | D13: 1 | E13: ACB46 | F13: 1.8 | G13: 1795 x 593 / 282 | H13: 72-SN | I13: 96-SN | J13: 106-SN | K13: 112-SN | N13: 54 | O13: 120 | P13: 1650 / 282 | Q13: 1454.3 | R13: 1.76
C14: 1-ACB46-2.4 | D14: 1 | E14: ACB46 | F14: 2.4 | G14: 2395 x 593 / 282 | H14: 100-SN | I14: 112-SN | N14: 72 | O14: =EVEN(ROUND(36*(F14-0.15)*2,0)) -> 162 | P14: 2250 / 282 | Q14: 273.1 | R14: 1.79
C15: =D15&"-"&E15&"-"&F15 -> 2-ACB46-0.6 | D15: 2 | E15: ACB46 | F15: 0.6 | G15: 595 x 593 / 282 | H15: 32-SN | N15: =EVEN(ROUND(16*(F15-0.15)*2,0)) -> 14 | O15: =EVEN(ROUND(36*(F15-0.15)*2,0)) -> 32 | P15: 450 / 482 | Q15: 393.6 | R15: 1.57 | S15: 208.6 | T15: 1.66
C16: 2-ACB46-0.9 | D16: 2 | E16: ACB46 | F16: 0.9 | G16: 895 x 593 / 282 | H16: 32-SN | I16: 34-SN | J16: 38-SN | K16: 40-SN | L16: 46-SN | M16: 48-SN | N16: 24 | O16: 54 | P16: 750 / 482 | Q16: 599.2 | R16: 1.67 | S16: 270.7 | T16: 1.73
C17: 2-ACB46-1.2 | D17: 2 | E17: ACB46 | F17: 1.2 | G17: 1195 x 593 / 282 | H17: 42-SN | I17: 50-SN | J17: 54-SN | K17: 62-SN | L17: 68-SN | N17: 34 | O17: 76 | P17: 1050 / 482 | Q17: 844.5 | R17: 1.75 | S17: 341 | T17: 1.79
C18: 2-ACB46-1.5 | D18: 2 | E18: ACB46 | F18: 1.5 | G18: 1495 x 593 / 282 | H18: 58-SN | I18: 76-SN | J18: 92-SN | N18: 44 | O18: 98 | P18: 1350 / 482 | Q18: 1126.7 | R18: 1.82 | S18: 419.3 | T18: 1.84
C19: 2-ACB46-1.8 | D19: 2 | E19: ACB46 | F19: 1.8 | G19: 1795 x 593 / 282 | H19: 72-SN | I19: 96-SN | J19: 106-SN | K19: 112-SN | N19: 54 | O19: 120 | P19: 1650 / 482 | Q19: 1442.6 | R19: 1.88 | S19: 505.5 | T19: 1.88
C20: 1-ACB46H-0.6 | D20: 1 | E20: ACB46H | F20: 0.6 | G20: 595 x 593 / 282 | H20: 32-SN | N20: 14 | O20: 32 | P20: 450 / 282 | Q20: 980.11 | R20: 1.97
C21: 1-ACB46H-0.9 | D21: 1 | E21: ACB46H | F21: 0.9 | G21: 895 x 593 / 282 | H21: 32-SN | I21: 34-SN | J21: 38-SN | K21: 40-SN | L21: 46-SN | M21: 48-SN | N21: 24 | O21: 54 | P21: 750 / 282 | Q21: 1138.5 | R21: 1.86
C22: 1-ACB46H-1.2 | D22: 1 | E22: ACB46H | F22: 1.2 | G22: 1195 x 593 / 282 | H22: 42-SN | I22: 50-SN | J22: 54-SN | K22: 62-SN | L22: 68-SN | N22: 34 | O22: 76 | P22: 1050 / 282 | Q22: 1215.65 | R22: 1.79
C23: 1-ACB46H-1.5 | D23: 1 | E23: ACB46H | F23: 1.5 | G23: 1495 x 593 / 282 | H23: 58-SN | I23: 76-SN | J23: 92-SN | N23: 44 | O23: 98 | P23: 1350 / 282 | Q23: 1317.3 | R23: 1.75
C24: 1-ACB46H-1.8 | D24: 1 | E24: ACB46H | F24: 1.8 | G24: 1795 x 593 / 282 | H24: 72-SN | I24: 96-SN | J24: 106-SN | K24: 112-SN | N24: =EVEN(ROUND(16*(F24-0.15)*2,0)) -> 54 | O24: 120 | P24: 1650 / 282 | Q24: 1454.3 | R24: 1.76
C25: 1-ACB46H-2.4 | D25: 1 | E25: ACB46H | F25: 2.4 | G25: 2395 x 593 / 282 | H25: 100-SN | I25: 112-SN | N25: =EVEN(ROUND(16*(F25-0.15)*2,0)) -> 72 | O25: =EVEN(ROUND(36*(F25-0.15)*2,0)) -> 162 | P25: 2250 / 282 | Q25: 273.1 | R25: 1.79
C26: 2-ACB46H-0.6 | D26: 2 | E26: ACB46H | F26: 0.6 | G26: 595 x 593 / 282 | H26: 34-SN | N26: 14 | O26: 32 | P26: 450 / 482 | Q26: 393.6 | R26: 1.57 | S26: 208.6 | T26: 1.66
C27: 2-ACB46H-0.9 | D27: 2 | E27: ACB46H | F27: 0.9 | G27: 895 x 593 / 282 | H27: 32-SN | I27: 34-SN | J27: 38-SN | K27: 40-SN | L27: 46-SN | M27: 48-SN | N27: 24 | O27: 54 | P27: 750 / 482 | Q27: 599.2 | R27: 1.67 | S27: 270.7 | T27: 1.73
C28: 2-ACB46H-1.2 | D28: 2 | E28: ACB46H | F28: 1.2 | G28: 1195 x 593 / 282 | H28: 42-SN | I28: 50-SN | J28: 54-SN | K28: 62-SN | L28: 68-SN | N28: 34 | O28: 76 | P28: 1050 / 482 | Q28: 844.5 | R28: 1.75 | S28: 341 | T28: 1.79
C29: 2-ACB46H-1.5 | D29: 2 | E29: ACB46H | F29: 1.5 | G29: 1495 x 593 / 282 | H29: 58-SN | I29: 76-SN | J29: 92-SN | N29: 44 | O29: 98 | P29: 1350 / 482 | Q29: 1126.7 | R29: 1.82 | S29: 419.3 | T29: 1.84
C30: 2-ACB46H-1.8 | D30: 2 | E30: ACB46H | F30: 1.8 | G30: 1795 x 593 / 282 | H30: 72-SN | I30: 96-SN | J30: 106-SN | K30: 112-SN | N30: 54 | O30: 120 | P30: 1650 / 482 | Q30: 1442.6 | R30: 1.88 | S30: 505.5 | T30: 1.88
C31: 1-CM10 6TH-0.8 | D31: 1 | E31: CM10 6TH | F31: 0.8 | G31: 800 x 100 / 409SE (363EE) | H31: 14-SN | I31: 18-SN | J31: 22-SN | K31: 24-SN | N31: =EVEN(ROUND(16*(F31-0.15)*1,0)) -> 10 | O31: =EVEN(ROUND(36*(F31-0.15)*1,0)) -> 24 | P31: 700 / 262 | Q31: 557.2 | R31: 1.68
C32: 1-CM10 6TH-0.9 | D32: 1 | E32: CM10 6TH | F32: 0.9 | G32: 900 x 100 / 409SE (363EE) | H32: 14-SN | I32: 18-SN | J32: 22-SN | K32: 24-SN | L32: 26-SN | N32: 12 | O32: 28 | P32: 800 / 262 | Q32: 613.3 | R32: 1.7
C33: 1-CM10 6TH-1 | D33: 1 | E33: CM10 6TH | F33: 1 | G33: 1000 x 100 / 409SE (363EE) | H33: 18-SN | I33: 22-SN | J33: 24-SN | K33: 26-SN | L33: 28-SN | N33: =EVEN(ROUND(16*(F33-0.15)*1,0)) -> 14 | O33: =EVEN(ROUND(36*(F33-0.15)*1,0)) -> 32 | P33: 900 / 262 | Q33: 670.1 | R33: 1.71
C34: 1-CM10 6TH-1.1 | D34: 1 | E34: CM10 6TH | F34: 1.1 | G34: 1100 x 100 / 409SE (363EE) | H34: 22-SN | I34: 26-SN | J34: 28-SN | K34: 32-SN | L34: 34-SN | N34: =EVEN(ROUND(16*(F34-0.15)*1,0)) -> 16 | O34: =EVEN(ROUND(36*(F34-0.15)*1,0)) -> 34 | P34: 1000 / 262 | Q34: 727.7 | R34: 1.72
C35: 1-CM10 6TH-1.2 | D35: 1 | E35: CM10 6TH | F35: 1.2 | G35: 1200 x 100 / 409SE (363EE) | H35: 22-SN | I35: 26-SN | J35: 28-SN | K35: 32-SN | L35: 38-SN | N35: 18 | O35: 38 | P35: 1100 / 262 | Q35: 785.9 | R35: 1.73
C36: =D36&"-"&E36&"-"&F36 -> 1-CM10 6TH-1.3 | D36: 1 | E36: CM10 6TH | F36: 1.3 | G36: 1300 x 100 / 409SE (363EE) | H36: 26-SN | I36: 28-SN | J36: 32-SN | K36: 38-SN | L36: 42-SN | N36: 18 | O36: 42 | P36: 1200 / 262 | Q36: 844.6 | R36: 1.74
C37: =D37&"-"&E37&"-"&F37 -> 1-CM10 6TH-1.4 | D37: 1 | E37: CM10 6TH | F37: 1.4 | G37: 1400 x 100 / 409SE (363EE) | H37: 26-SN | I37: 28-SN | J37: 32-SN | K37: 38-SN | L37: 42-SN | N37: 20 | O37: 46 | P37: 1300 / 262 | Q37: 903.8 | R37: 1.74
C38: 1-CM10 6TH-1.5 | D38: 1 | E38: CM10 6TH | F38: 1.5 | G38: 1500 x 100 / 409SE (363EE) | H38: 28-SN | I38: 32-SN | J38: 38-SN | K38: 42-SN | L38: 50-SN | N38: 22 | O38: 50 | P38: 1400 / 262 | Q38: 963.4 | R38: 1.75
C39: 1-CM10 6TH-1.6 | D39: 1 | E39: CM10 6TH | F39: 1.6 | G39: 1600 x 100 / 409SE (363EE) | H39: 28-SN | I39: 32-SN | J39: 38-SN | K39: 46-SN | L39: 52-SN | N39: 24 | O39: 52 | P39: 1500 / 262 | Q39: 1023.4 | R39: 1.76
C40: 1-ACB50-1.2 | D40: 1 | E40: ACB50 | F40: 1.2 | G40: 1192 x 592 / 282 | H40: 22-SN | I40: 28-SN | J40: 38-SN | N40: 18 | O40: 38 | P40: 1050 / 282 | Q40: 1215.65 | R40: 1.79
C41: =D41&"-"&E41&"-"&F41 -> 1-ACB50-1.8 | D41: 1 | E41: ACB50 | F41: 1.8 | G41: 1792 x 592 / 282 | H41: 22-SN | I41: 28-SN | J41: 38-SN | N41: 26 | O41: 60 | P41: 1650 / 282 | Q41: 1454.3 | R41: 1.76
C42: =D42&"-"&E42&"-"&F42 -> 2-HM30-0.75 | D42: 2 | E42: HM30 | F42: 0.75 | G42: =(F42)*1000&" x 443 / 224" -> 750 x 443 / 224 | H42: 14-MN | I42: 19-MN | J42: 24-MN | N42: 10 | O42: 22 | P42: 700 / 482 | Q42: 587 | R42: 1.63 | S42: 271 | T42: 1.72
C43: 2-HM30-0.85 | D43: 2 | E43: HM30 | F43: 0.85 | G43: =(F43)*1000&" x 443 / 224" -> 850 x 443 / 224 | H43: 16-MN | I43: 22-MN | J43: 28-MN | N43: 12 | O43: 26 | P43: 800 / 482 | Q43: 668 | R43: 1.68 | S43: 297 | T43: 1.74
C44: 2-HM30-0.95 | D44: 2 | E44: HM30 | F44: 0.95 | G44: 950 x 443 / 224 | H44: 18-MN | I44: 25-MN | J44: 32-MN | N44: 14 | O44: 30 | P44: 900 / 482 | Q44: 748 | R44: 1.7 | S44: 322 | T44: 1.75
C45: 2-HM30-1.05 | D45: 2 | E45: HM30 | F45: 1.05 | G45: 1050 x 443 / 224 | H45: 20-MN | I45: 28-MN | J45: 36-MN | N45: 14 | O45: 32 | P45: 1000 / 482 | Q45: 828 | R45: 1.73 | S45: 346 | T45: 1.78
C46: 2-HM30-1.15 | D46: 2 | E46: HM30 | F46: 1.15 | G46: 1150 x 443 / 224 | H46: 22-MN | I46: 31-MN | J46: 40-MN | N46: 16 | O46: 36 | P46: 1100 / 482 | Q46: 908 | R46: 1.77 | S46: 370 | T46: 1.8
C47: 2-HM30-1.25 | D47: 2 | E47: HM30 | F47: 1.25 | G47: 1250 x 443 / 224 | H47: 24-MN | I47: 33-MN | J47: 42-MN | N47: 18 | O47: 40 | P47: 1200 / 482 | Q47: 988 | R47: 1.79 | S47: 393 | T47: 1.82
C48: 2-HM30-1.35 | D48: 2 | E48: HM30 | F48: 1.35 | G48: 1350 x 443 / 224 | H48: 26-MN | I48: 35-MN | J48: 44-MN | N48: 20 | O48: 44 | P48: 1300 / 482 | Q48: 1067 | R48: 1.81 | S48: 415 | T48: 1.84
C49: 2-HM30-1.45 | D49: 2 | E49: HM30 | F49: 1.45 | G49: 1450 x 443 / 224 | H49: 28-MN | I49: 38-MN | J49: 48-MN | N49: 22 | O49: 48 | P49: 1400 / 482 | Q49: 1146 | R49: 1.81 | S49: 437 | T49: 1.85
C50: 2-HM30-1.55 | D50: 2 | E50: HM30 | F50: 1.55 | G50: 1550 x 443 / 224 | H50: 30-MN | I50: 40-MN | J50: 50-MN | N50: 22 | O50: 50 | P50: 1500 / 482 | Q50: 1235 | R50: 1.81 | S50: 484.1 | T50: 1.85
C51: --
C52: =D52&"-"&E52&"-"&F52 -> --
C53: --
C54: --
C55: --
C56: --
C57: --
C58: --
C59: --
C60: --
C61: --
C62: --
C63: --
C64: --
C65: --
C66: --
C67: --
C68: --
C69: --
C70: --
C71: --
C72: --
C73: --
C74: --
C75: --
C76: --
C77: =D77&"-"&E77&"-"&F77 -> --
C78: --
C79: --
C80: --
C81: --
B82: =SelecTool!$D$53&"-"&SelecTool!$D$13&"-"&SelecTool!$E$13 -> 1-ACB46-1.8 | C82: =VLOOKUP($B$82,'Lookup Tables'!$C$5:$T$81,'Lookup Tables'!C83,FALSE) -> 1-ACB46-1.8 | D82: =VLOOKUP($B$82,'Lookup Tables'!$C$5:$T$81,'Lookup Tables'!D83,FALSE) -> 1 | E82: =VLOOKUP($B$82,'Lookup Tables'!$C$5:$T$81,'Lookup Tables'!E83,FALSE) -> ACB46 | F82: =VLOOKUP($B$82,'Lookup Tables'!$C$5:$T$81,'Lookup Tables'!F83,FALSE) -> 1.8 | G82: =VLOOKUP($B$82,'Lookup Tables'!$C$5:$T$81,'Lookup Tables'!G83,FALSE) -> 1795 x 593 / 282 | H82: =VLOOKUP($B$82,'Lookup Tables'!$C$5:$T$81,'Lookup Tables'!H83,FALSE) -> 72-SN | I82: =VLOOKUP($B$82,'Lookup Tables'!$C$5:$T$81,'Lookup Tables'!I83,FALSE) -> 96-SN | J82: =VLOOKUP($B$82,'Lookup Tables'!$C$5:$T$81,'Lookup Tables'!J83,FALSE) -> 106-SN | K82: =VLOOKUP($B$82,'Lookup Tables'!$C$5:$T$81,'Lookup Tables'!K83,FALSE) -> 112-SN | L82: =VLOOKUP($B$82,'Lookup Tables'!$C$5:$T$81,'Lookup Tables'!L83,FALSE) -> 0 | M82: =VLOOKUP($B$82,'Lookup Tables'!$C$5:$T$81,'Lookup Tables'!M83,FALSE) -> 0 | N82: =VLOOKUP($B$82,'Lookup Tables'!$C$5:$T$81,'Lookup Tables'!N83,FALSE) -> 54 | O82: =VLOOKUP($B$82,'Lookup Tables'!$C$5:$T$81,'Lookup Tables'!O83,FALSE) -> 120 | P82: =VLOOKUP($B$82,'Lookup Tables'!$C$5:$T$81,'Lookup Tables'!P83,FALSE) -> 1650 / 282 | Q82: =VLOOKUP($B$82,'Lookup Tables'!$C$5:$T$81,'Lookup Tables'!Q83,FALSE) -> 1454.3 | R82: =VLOOKUP($B$82,'Lookup Tables'!$C$5:$T$81,'Lookup Tables'!R83,FALSE) -> 1.76 | S82: =VLOOKUP($B$82,'Lookup Tables'!$C$5:$T$81,'Lookup Tables'!S83,FALSE) -> 0 | T82: =VLOOKUP($B$82,'Lookup Tables'!$C$5:$T$81,'Lookup Tables'!T83,FALSE) -> 0
C83: 1 | D83: =C83+1 -> 2 | E83: =D83+1 -> 3 | F83: 4 | G83: 5 | H83: 6 | I83: 7 | J83: 8 | K83: 9 | L83: 10 | M83: 11 | N83: 12 | O83: 13 | P83: 14 | Q83: 15 | R83: 16 | S83: 17 | T83: 18
B84: MODEL | C84: =E82&"-"&P82&" "&SelecTool!F13 -> ACB46-1650 / 282 72-SN
B85: REF | C85: =E82&"-"&RIGHT(P82,3)&"-"&RIGHT(C84,2) -> ACB46-282-SN
B86: Coil Length | C86: =LEFT(P82,4) -> 1650
B87: Nozzle Options | C87: =IF(H82=0,"",H82) -> 72-SN
C88: =IF(I82=0,"",I82) -> 96-SN
C89: =IF(J82=0,"",J82) -> 106-SN
C90: =IF(K82=0,"",K82) -> 112-SN
C91: =IF(L82=0,"",L82) -> 
C92: =IF(M82=0,"",M82) -> 
G104: COOLING | Y104: HEATING | AK104: ZONE SUMMARY
G105: Room | J105: Air side | N105: Water side (Coil) | R105: Total Performance | Y105: Room | Z105: Air side | AC105: Water side (Coil) | AG105: Duty | AK105: Cooling | AO105: Heating
A106: List No. | B106: Location | C106: Name | D106: Unit Code | F106: Quantity in units | G106: Temperature | H106: Relative humidity | I106: Dew point | J106: Temperature | K106: Relative humidity | L106: Primary air flow | M106: Static pressure drop | N106: Entering water temperature | O106: Leaving water temperature | P106: Water pressure drop | Q106: Water flow rate | R106: Primary air latent duty | S106: Primary air sensible duty | T106: Secondary (coil) duty | U106: Total sensible duty | V106: Supply air temperature | W106: Supply air flow rate | Y106: Temperature | Z106: Temperature | AA106: Primary air flow | AB106: Static pressure drop | AC106: Entering water temperature | AD106: Leaving water temperature | AE106: Water pressure drop | AF106: Water flow rate | AG106: Primary air sensible duty | AH106: Secondary (coil) duty | AI106: Total sensible duty | AK106: Zone primary air flow | AL106: Zone chilled water flow | AM106: Zone total latent duty | AN106: Zone total sensible duty | AO106: Zone primary air flow | AP106: Zone hot water flow | AQ106: Zone total sensible duty
E107: Size LxWxH | F107: No. | G107: ⁰C | H107: %rh | I107: ⁰C | J107: ⁰C | K107: %rh | L107: L/s | M107: Pa | N107: ⁰C | O107: ⁰C | P107: kPa | Q107: L/s | R107: W | S107: W | T107: W | U107: W | V107: ⁰C | W107: L/s | Y107: ⁰C | Z107: ⁰C | AA107: L/s | AB107: Pa | AC107: ⁰C | AD107: ⁰C | AE107: kPa | AF107: L/s | AG107: W | AH107: W | AI107: W | AK107: L/s | AL107: L/s | AM107: kW | AN107: kW | AO107: L/s | AP107: L/s | AQ107: kW
B108: =SelecTool!D6 -> 0 | C108: =SelecTool!D7 -> 0 | D108: =SelecTool!D16 -> ACB46-1650 / 282 72-SN | E108: =SelecTool!D15 -> 1795 x 593 / 282mm (l w h) | F108: =SelecTool!D8 -> 0 | G108: =SelecTool!D20 -> 26 | H108: =SelecTool!D21*100 -> 50 | I108: =SelecTool!D22 -> 14.78246498 | J108: =SelecTool!D24 -> 18 | K108: =SelecTool!D25*100 -> 50 | L108: =SelecTool!D27 -> 40.32 | M108: =SelecTool!D28 -> 113.8141861 | N108: =SelecTool!D31 -> 16 | O108: =SelecTool!D32 -> 19.56050247 | P108: =SelecTool!D33 -> 14.17617931 | Q108: =SelecTool!D34 -> 0.072 | R108: =SelecTool!D39 -> -486.672643 | S108: =SelecTool!D36 -> -387.5517954 | T108: =SelecTool!D37 -> -1073.363317 | U108: =SelecTool!D38 -> -1460.915112 | V108: =SelecTool!J24 -> 18.92057108 | W108: =SelecTool!J25 -> 173.2288529 | Y108: =SelecTool!F20 -> 21 | Z108: =SelecTool!F24 -> 21 | AA108: =SelecTool!F27 -> 40.32 | AB108: =SelecTool!F28 -> 117.718338 | AC108: =SelecTool!F31 ->  | AD108: =SelecTool!F32 ->  | AE108: =SelecTool!F33 -> 0 | AF108: =SelecTool!F34 -> 0 | AG108: =SelecTool!F36 -> 0 | AH108: =SelecTool!F37 -> 0 | AI108: =SelecTool!F38 -> 0 | AK108: =F108*L108 -> 0 | AL108: =F108*Q108 -> 0 | AM108: =F108*R108/1000 -> 0 | AN108: =F108*U108/1000 -> 0 | AO108: =F108*AA108 -> 0 | AP108: =F108*AF108 -> 0 | AQ108: =F108*AI108/1000 -> 0

Sheet ValData_model length (hidden)
A1: Model-Coil config-circuit id-nozzle type
C2: Name Manager functions to drive dynamic data validations.
D3: P2valdata | E3: ='ValData_model length'!$A$11:INDEX('ValData_model length'!$10:$40,31,COUNTA('ValData_model length'!$10:$10)) -> 
D4: P2master | E4: ='ValData_model length'!$A$11:INDEX('ValData_model length'!$A$10:$A$40,COUNTA('ValData_model length'!$A$10:$A$40)) -> 
D5: P2counter | E5: =COUNTA(INDEX(P2valdata,,MATCH(SelecTool!D13,'ValData_model length'!$10:$10,0))) -> 5
D6: P2uselist | E6: =INDEX(P2valdata,1,MATCH(SelecTool!D13,'ValData_model length'!$10:$10,0)):INDEX(P2valdata,P2counter,MATCH(SelecTool!D13,'ValData_model length'!$10:$10,0)) -> 0.6
A8: 2-Pipe | B8: 2.4m beam excluded as the cooling performance was approx 13% less than proportionally acceptable for this length. Suspect the plenum is too long for good pressure equilibrium between the nozzles!
A10: Model | B10: =A11 -> ACB45 | C10: =A12 -> ACB46 | D10: =A13 -> ACB46H | E10: =A14 -> ACB50 | F10: CM10 6TH
A11: ACB45 | B11: 0.9 | C11: 0.6 | D11: 0.6 | E11: 1.2 | F11: 0.8
A12: ACB46 | B12: 1.5 | C12: 0.9 | D12: 0.9 | E12: 1.8 | F12: 0.9
A13: ACB46H | C13: 1.2 | D13: 1.2 | F13: 1
A14: ACB50 | C14: 1.5 | D14: 1.5 | F14: 1.1
A15: CM10 6TH | C15: 1.8 | D15: 1.8 | F15: 1.2
F16: 1.3
F17: 1.4
F18: 1.5
F19: 1.6
D43: P4valdata | E43: ='ValData_model length'!$A$51:INDEX('ValData_model length'!$50:$80,31,COUNTA('ValData_model length'!$50:$50)) -> 
D44: P4master | E44: ='ValData_model length'!$A$51:INDEX('ValData_model length'!$A$50:$A$80,COUNTA('ValData_model length'!$A$50:$A$80)) -> 
D45: P4counter | E45: =COUNTA(INDEX(P4valdata,,MATCH(SelecTool!D13,'ValData_model length'!$50:$50,0))) -> 4
D46: P4uselist | E46: =INDEX(P4valdata,1,MATCH(SelecTool!D13,'ValData_model length'!$50:$50,0)):INDEX(P4valdata,P4counter,MATCH(SelecTool!D13,'ValData_model length'!$50:$50,0)) -> 0.9
A48: 4-Pipe
A50: Model | B50: =A51 -> ACB45 | C50: =A52 -> ACB46 | D50: =A53 -> ACB46H
A51: ACB45 | B51: 0.9 | C51: 0.9 | D51: 0.9
A52: ACB46 | B52: 1.5 | C52: 1.2 | D52: 1.2
A53: ACB46H | C53: 1.5 | D53: 1.5
C54: 1.8 | D54: 1.8

Sheet Project Schedule (hidden)
B2: Project Name | AQ2: Active Chilled Beam SelecTool v6.2.3
B3: Project Number
B4: Date
B5: Issue
G6: COOLING | Y6: HEATING | AK6: ZONE SUMMARY
G7: Room | J7: Air side | N7: Water side (Coil) | R7: Total Performance | Y7: Room | Z7: Air side | AC7: Water side (Coil) | AG7: Duty | AK7: Cooling | AO7: Heating
A8: List No. | B8: Location | C8: Name | D8: Unit Code | F8: Quantity in units | G8: Temperature | H8: Relative humidity | I8: Dew point | J8: Temperature | K8: Relative humidity | L8: Primary air flow | M8: Static pressure drop | N8: Entering water temperature | O8: Leaving water temperature | P8: Water pressure drop | Q8: Water flow rate | R8: Primary air latent duty | S8: Primary air sensible duty | T8: Secondary (coil) duty | U8: Total sensible duty | V8: Supply air temperature | W8: Supply air flow rate | Y8: Temperature | Z8: Temperature | AA8: Primary air flow | AB8: Static pressure drop | AC8: Entering water temperature | AD8: Leaving water temperature | AE8: Water pressure drop | AF8: Water flow rate | AG8: Primary air sensible duty | AH8: Secondary (coil) duty | AI8: Total sensible duty | AK8: Zone primary air flow | AL8: Zone chilled water flow | AM8: Zone total latent duty | AN8: Zone total sensible duty | AO8: Zone primary air flow | AP8: Zone hot water flow | AQ8: Zone total sensible duty
E9: Size LxWxH | F9: No. | G9: ⁰C | H9: %rh | I9: ⁰C | J9: ⁰C | K9: %rh | L9: L/s | M9: Pa | N9: ⁰C | O9: ⁰C | P9: kPa | Q9: L/s | R9: W | S9: W | T9: W | U9: W | V9: ⁰C | W9: L/s | Y9: ⁰C | Z9: ⁰C | AA9: L/s | AB9: Pa | AC9: ⁰C | AD9: ⁰C | AE9: kPa | AF9: L/s | AG9: W | AH9: W | AI9: W | AK9: L/s | AL9: L/s | AM9: kW | AN9: kW | AO9: L/s | AP9: L/s | AQ9: kW

Sheet EnableMacros
D7: You must enable macros before using this workbook.
... 2 more rows
